{"text_format":"1","workbook":"xlsx","n_sheets":1,"sheets":["Перечень"],"not_rendered":{"charts":0,"images":0,"macros":0,"external_links":0,"defined_names":3,"comments":0,"pivot_tables":0},"unopened":[],"bounds":{"document_bytes":16777216,"sheet_cells":100000,"rows_first":2000,"rows_last":500,"rows_between":2000,"halvings":0,"cell_chars":16384,"cell_head_chars":4096},"cells_cut":0,"cells_raw":0,"read":"whole","date_system":"1900"}

{"sheet":"Перечень","index":0,"n_rows":92,"n_cols":14,"rows_kept":92,"cut":false,"hidden":false,"merged":[[176,0,176,13]]}
["Форма предоставления информации для реализации невостребованных автомабильных запасных частей"]
["№ п/п","Наименование","№ Лота","Номенклатурный номер","Вид НЛ/НВЛ *","Наименование ","Артикул","Количество","Ед. измер.","Цена реализации, руб.","Цена реализации в т.ч. НДС (20%) руб. за ед. изм.","Сумма реализации в т.ч. НДС (20%), руб.","Техническое состояние","Место нахождения (Адрес склада  (фактический), Наименование организации (хранителя))"]
[1,2,3,null,4,5,null,8,"9",null,null,null,null,"10"]
[1,"АО \"АНХК\"","№1 Невостребованные автомобильные запасные части","4552107601","Запчасти и прочее","БАМПЕР(Л.КРУИЗЕР)",5210760060,2,"шт.",545.49,{"$f":"ROUND(J4*20/100,3)+J4","v":654.58799999999997},{"$f":"K4*H4","v":1309.1759999999999},"Хорошее тех.состояние. Пригодные для дальнейшего использования","Промплощадка АО \"АНХК\", г.Ангарск, Склад № 18, Иркутская область"]
[2,"АО \"АНХК\"","№1 Невостребованные автомобильные запасные части","4543420101","Запчасти и прочее","ВАЛ ПРИВОДА КОЛЕСА(КОРОЛЛА)",4342012091,7,"шт.",1965.85,{"$f":"ROUND(J5*20/100,3)+J5","v":2359.02},{"$f":"K5*H5","v":16513.14},"Хорошее тех.состояние. Пригодные для дальнейшего использования","Промплощадка АО \"АНХК\", г.Ангарск, Склад № 18, Иркутская область"]
[3,"АО \"АНХК\"","№1 Невостребованные автомобильные запасные части",4543410101,"Запчасти и прочее","ВАЛ ПРИВОДА КОЛЕСА(КОРОЛЛА)",4341060070,8,"шт.",2733,{"$f":"ROUND(J6*20/100,3)+J6","v":3279.6},{"$f":"K6*H6","v":26236.799999999999},"Хорошее тех.состояние. Пригодные для дальнейшего использования","Промплощадка АО \"АНХК\", г.Ангарск, Склад № 18, Иркутская область"]
[4,"АО \"АНХК\"","№1 Невостребованные автомобильные запасные части","4545210201","Запчасти и прочее","ВАЛ РУЛЯ(ХАЙ-ЭЙС)",4521026050,4,"шт.",1773,{"$f":"ROUND(J7*20/100,3)+J7","v":2127.6},{"$f":"K7*H7","v":8510.4},"Хорошее тех.состояние. Пригодные для дальнейшего использования","Промплощадка АО \"АНХК\", г.Ангарск, Склад № 18, Иркутская область"]
[5,"АО \"АНХК\"","№1 Невостребованные автомобильные запасные части","4543420102","Запчасти и прочее","ВАЛ ПРИВОДА-ШАРНИР(КОРОЛЛА)",4342012110,46,"шт.",360,{"$f":"ROUND(J8*20/100,3)+J8","v":432},{"$f":"K8*H8","v":19872},"Хорошее тех.состояние. Пригодные для дальнейшего использования","Промплощадка АО \"АНХК\", г.Ангарск, Склад № 18, Иркутская область"]
[6,"АО \"АНХК\"","№1 Невостребованные автомобильные запасные части","4513202601","Запчасти и прочее","ВКЛАДЫШИ ШАТУННЫЕ(КОРОЛЛА)","130415404101",3,"шт.",257,{"$f":"ROUND(J9*20/100,3)+J9","v":308.39999999999998},{"$f":"K9*H9","v":925.19999999999993},"Хорошее тех.состояние. Пригодные для дальнейшего использования","Промплощадка АО \"АНХК\", г.Ангарск, Склад № 18, Иркутская область"]
[7,"АО \"АНХК\"","№1 Невостребованные автомобильные запасные части","4511704101","Запчасти и прочее","ВКЛАДЫШ (Л.КРУИЗЕР)",1170154061,2,"шт.",351,{"$f":"ROUND(J10*20/100,3)+J10","v":421.2},{"$f":"K10*H10","v":842.4},"Хорошее тех.состояние. Пригодные для дальнейшего использования","Промплощадка АО \"АНХК\", г.Ангарск, Склад № 18, Иркутская область"]
[8,"АО \"АНХК\"","№1 Невостребованные автомобильные запасные части","4511701102","Запчасти и прочее","ВКЛАДЫШИ КОРЕННЫЕ(Л.КРУИЗЕР)","1320417010025",16,"шт.",279,{"$f":"ROUND(J11*20/100,3)+J11","v":334.8},{"$f":"K11*H11","v":5356.8},"Хорошее тех.состояние. Пригодные для дальнейшего использования","Промплощадка АО \"АНХК\", г.Ангарск, Склад № 18, Иркутская область"]
[9,"АО \"АНХК\"","№1 Невостребованные автомобильные запасные части","4511701601","Запчасти и прочее","ВКЛАДЫШИ КОРЕННЫЕ(КОРОЛЛА)",11701540607,4,"шт.",244,{"$f":"ROUND(J12*20/100,3)+J12","v":292.8},{"$f":"K12*H12","v":1171.2},"Хорошее тех.состояние. Пригодные для дальнейшего использования","Промплощадка АО \"АНХК\", г.Ангарск, Склад № 18, Иркутская область"]
[10,"АО \"АНХК\"","№1 Невостребованные автомобильные запасные части","4513202601","Запчасти и прочее","ВКЛАДЫШИ ШАТУННЫЕ(КОРОЛЛА)",30415404101,3,"шт.",102,{"$f":"ROUND(J13*20/100,3)+J13","v":122.4},{"$f":"K13*H13","v":367.20000000000005},"Хорошее тех.состояние. Пригодные для дальнейшего использования","Промплощадка АО \"АНХК\", г.Ангарск, Склад № 18, Иркутская область"]
[11,"АО \"АНХК\"","№1 Невостребованные автомобильные запасные части","4513202501","Запчасти и прочее","ВКЛАДЫШИ ШАТУННЫЕ(ХАЙ-ЭЙС)","132025401001",9,"шт.",84,{"$f":"ROUND(J14*20/100,3)+J14","v":100.8},{"$f":"K14*H14","v":907.19999999999993},"Хорошее тех.состояние. Пригодные для дальнейшего использования","Промплощадка АО \"АНХК\", г.Ангарск, Склад № 18, Иркутская область"]
[12,"АО \"АНХК\"","№1 Невостребованные автомобильные запасные части","4513204101","Запчасти и прочее","ВКЛАДЫШ (Л.КРУИЗЕР)","132026403101",1,"шт.",173,{"$f":"ROUND(J15*20/100,3)+J15","v":207.6},{"$f":"K15*H15","v":207.6},"Хорошее тех.состояние. Пригодные для дальнейшего использования","Промплощадка АО \"АНХК\", г.Ангарск, Склад № 18, Иркутская область"]
[13,"АО \"АНХК\"","№1 Невостребованные автомобильные запасные части","4584210101","Запчасти и прочее","ВКЛЮЧАТЕЛЬ(ТОЙОТА)",8421012040,1,"шт.",651,{"$f":"ROUND(J16*20/100,3)+J16","v":781.2},{"$f":"K16*H16","v":781.2},"Хорошее тех.состояние. Пригодные для дальнейшего использования","Промплощадка АО \"АНХК\", г.Ангарск, Склад № 18, Иркутская область"]
[14,"АО \"АНХК\"","№1 Невостребованные автомобильные запасные части","4584510601","Запчасти и прочее","ВКЛЮЧАТЕЛЬ(ТОЙОТА)",8434032050,1,"шт.",89.59,{"$f":"ROUND(J17*20/100,3)+J17","v":107.50800000000001},{"$f":"K17*H17","v":107.50800000000001},"Хорошее тех.состояние. Пригодные для дальнейшего использования","Промплощадка АО \"АНХК\", г.Ангарск, Склад № 18, Иркутская область"]
[15,"АО \"АНХК\"","№1 Невостребованные автомобильные запасные части","4548632201","Запчасти и прочее","ВТУЛКА(ХАЙ-ЭЙС)",4863226010,172,"шт.",216,{"$f":"ROUND(J18*20/100,3)+J18","v":259.2},{"$f":"K18*H18","v":44582.400000000001},"Хорошее тех.состояние. Пригодные для дальнейшего использования","Промплощадка АО \"АНХК\", г.Ангарск, Склад № 18, Иркутская область"]
[16,"АО \"АНХК\"","№1 Невостребованные автомобильные запасные части","4548655101","Запчасти и прочее","ВТУЛКА(КОРОЛЛА)",4865512060,28,"шт.",119,{"$f":"ROUND(J19*20/100,3)+J19","v":142.80000000000001},{"$f":"K19*H19","v":3998.4000000000005},"Хорошее тех.состояние. Пригодные для дальнейшего использования","Промплощадка АО \"АНХК\", г.Ангарск, Склад № 18, Иркутская область"]
[17,"АО \"АНХК\"","№1 Невостребованные автомобильные запасные части","4548061201","Запчасти и прочее","ВТУЛКА(ХАЙ-ЭЙС)",4806126030,47,"шт.",175,{"$f":"ROUND(J20*20/100,3)+J20","v":210},{"$f":"K20*H20","v":9870},"Хорошее тех.состояние. Пригодные для дальнейшего использования","Промплощадка АО \"АНХК\", г.Ангарск, Склад № 18, Иркутская область"]
[18,"АО \"АНХК\"","№1 Невостребованные автомобильные запасные части","4544275201","Запчасти и прочее","ВТУЛКА РУЛЕВОГО МЕХАНИЗМА(ХАЙ-ЭЙС)",4427526020,6,"шт.",89,{"$f":"ROUND(J21*20/100,3)+J21","v":106.8},{"$f":"K21*H21","v":640.79999999999995},"Хорошее тех.состояние. Пригодные для дальнейшего использования","Промплощадка АО \"АНХК\", г.Ангарск, Склад № 18, Иркутская область"]
[19,"АО \"АНХК\"","№1 Невостребованные автомобильные запасные части","4583530301","Запчасти и прочее","ДАТЧИК ДАВЛЕНИЯ(ХАЙ-ЭЙС)",8353030060,10,"шт.",167,{"$f":"ROUND(J22*20/100,3)+J22","v":200.4},{"$f":"K22*H22","v":2004},"Хорошее тех.состояние. Пригодные для дальнейшего использования","Промплощадка АО \"АНХК\", г.Ангарск, Склад № 18, Иркутская область"]
[20,"АО \"АНХК\"","№1 Невостребованные автомобильные запасные части","4583420201","Запчасти и прочее","ДАТЧИК ТЕМПЕРАТУР(ХАЙ-ЭЙС)",8342020020,11,"шт.",542,{"$f":"ROUND(J23*20/100,3)+J23","v":650.4},{"$f":"K23*H23","v":7154.4},"Хорошее тех.состояние. Пригодные для дальнейшего использования","Промплощадка АО \"АНХК\", г.Ангарск, Склад № 18, Иркутская область"]
[21,"АО \"АНХК\"","№1 Невостребованные автомобильные запасные части","4531210302","Запчасти и прочее","ДИСК СЦЕПЛ ВЕДУЩ(КОРОЛЛА)",3121032030,38,"шт.",1239,{"$f":"ROUND(J24*20/100,3)+J24","v":1486.8},{"$f":"K24*H24","v":56498.400000000001},"Хорошее тех.состояние. Пригодные для дальнейшего использования","Промплощадка АО \"АНХК\", г.Ангарск, Склад № 18, Иркутская область"]
[22,"АО \"АНХК\"","№1 Невостребованные автомобильные запасные части","4531210302","Запчасти и прочее","ДИСК СЦЕПЛ ВЕДУЩ(КОРОЛЛА)",3121032121,38,"шт.",706,{"$f":"ROUND(J25*20/100,3)+J25","v":847.2},{"$f":"K25*H25","v":32193.600000000002},"Хорошее тех.состояние. Пригодные для дальнейшего использования","Промплощадка АО \"АНХК\", г.Ангарск, Склад № 18, Иркутская область"]
[23,"АО \"АНХК\"","№1 Невостребованные автомобильные запасные части","4531250103","Запчасти и прочее","ДИСК СЦЕПЛ ВЕДОМЫЙ(КОРОЛЛА)","3125012163\n3125012280",34,"шт.",1063.5,{"$f":"ROUND(J26*20/100,3)+J26","v":1276.2},{"$f":"K26*H26","v":43390.8},"Хорошее тех.состояние. Пригодные для дальнейшего использования","Промплощадка АО \"АНХК\", г.Ангарск, Склад № 18, Иркутская область"]
[24,"АО \"АНХК\"","№1 Невостребованные автомобильные запасные части","4513011101","Запчасти и прочее","КОЛЬЦО ПОРШЕВОЕ (Л.КРУИЗЕР)",1301317020,3,"компл.",2266,{"$f":"ROUND(J27*20/100,3)+J27","v":2719.2},{"$f":"K27*H27","v":8157.5999999999995},"Хорошее тех.состояние. Пригодные для дальнейшего использования","Промплощадка АО \"АНХК\", г.Ангарск, Склад № 18, Иркутская область"]
[25,"АО \"АНХК\"","№1 Невостребованные автомобильные запасные части","4513013502","Запчасти и прочее","КОЛЬЦО ПОРШНЕВОЕ(ХАЙ-ЭЙС)",1301354062,4,"шт.",1642,{"$f":"ROUND(J28*20/100,3)+J28","v":1970.4},{"$f":"K28*H28","v":7881.6},"Хорошее тех.состояние. Пригодные для дальнейшего использования","Промплощадка АО \"АНХК\", г.Ангарск, Склад № 18, Иркутская область"]
[26,"АО \"АНХК\"","№1 Невостребованные автомобильные запасные части","4504495201","Запчасти и прочее","КОЛОДКА ТОРМ(ХАЙ-ЭЙС)",449526130,51,"шт.",827,{"$f":"ROUND(J29*20/100,3)+J29","v":992.4},{"$f":"K29*H29","v":50612.4},"Хорошее тех.состояние. Пригодные для дальнейшего использования","Промплощадка АО \"АНХК\", г.Ангарск, Склад № 18, Иркутская область"]
[27,"АО \"АНХК\"","№1 Невостребованные автомобильные запасные части","4590913001","Запчасти и прочее","КОЛПАЧЕК МАСЛОСЪЕМНЫЙ",9091302053,1024,"шт.",40,{"$f":"ROUND(J30*20/100,3)+J30","v":48},{"$f":"K30*H30","v":49152},"Хорошее тех.состояние. Пригодные для дальнейшего использования","Промплощадка АО \"АНХК\", г.Ангарск, Склад № 18, Иркутская область"]
[28,"АО \"АНХК\"","№1 Невостребованные автомобильные запасные части","4547230201","Запчасти и прочее","КОЛПАЧЕК(ТОЙОТА)",4723020030,4,"шт.",14.3,{"$f":"ROUND(J31*20/100,3)+J31","v":17.16},{"$f":"K31*H31","v":68.64},"Хорошее тех.состояние. Пригодные для дальнейшего использования","Промплощадка АО \"АНХК\", г.Ангарск, Склад № 18, Иркутская область"]
[29,"АО \"АНХК\"","№1 Невостребованные автомобильные запасные части","4513715601","Запчасти и прочее","КЛАПАН ВЫПУСК(Л.КРУИЗЕР,КОРОЛЛА)",1371164020,49,"шт.",219,{"$f":"ROUND(J32*20/100,3)+J32","v":262.8},{"$f":"K32*H32","v":12877.2},"Хорошее тех.состояние. Пригодные для дальнейшего использования","Промплощадка АО \"АНХК\", г.Ангарск, Склад № 18, Иркутская область"]
[30,"АО \"АНХК\"","№1 Невостребованные автомобильные запасные части","4513711601","Запчасти и прочее","КЛАПАН ВПУСКНОЙ(Л.КРУИЗЕР)",1371164010,4,"шт.",149,{"$f":"ROUND(J33*20/100,3)+J33","v":178.8},{"$f":"K33*H33","v":715.2},"Хорошее тех.состояние. Пригодные для дальнейшего использования","Промплощадка АО \"АНХК\", г.Ангарск, Склад № 18, Иркутская область"]
[31,"АО \"АНХК\"","№1 Невостребованные автомобильные запасные части","4513715101","Запчасти и прочее","КЛАПАН ВЫПУСК(Л.КРУИЗЕР)",1371117010,6,"шт.",194,{"$f":"ROUND(J34*20/100,3)+J34","v":232.8},{"$f":"K34*H34","v":1396.8000000000002},"Хорошее тех.состояние. Пригодные для дальнейшего использования","Промплощадка АО \"АНХК\", г.Ангарск, Склад № 18, Иркутская область"]
[32,"АО \"АНХК\"","№1 Невостребованные автомобильные запасные части","4581731601","Запчасти и прочее","ЛАМПА-ПОВТОРИТЕЛЬ (Л.КРУИЗЕР)",8173160061,1,"шт.",383,{"$f":"ROUND(J35*20/100,3)+J35","v":459.6},{"$f":"K35*H35","v":459.6},"Хорошее тех.состояние. Пригодные для дальнейшего использования","Промплощадка АО \"АНХК\", г.Ангарск, Склад № 18, Иркутская область"]
[33,"АО \"АНХК\"","№1 Невостребованные автомобильные запасные части","4515100601","Запчасти и прочее","НАСОС МАСЛ(КОРОЛЛА)",1510064030,9,"шт.",884,{"$f":"ROUND(J36*20/100,3)+J36","v":1060.8},{"$f":"K36*H36","v":9547.1999999999989},"Хорошее тех.состояние. Пригодные для дальнейшего использования","Промплощадка АО \"АНХК\", г.Ангарск, Склад № 18, Иркутская область"]
[34,"АО \"АНХК\"","№1 Невостребованные автомобильные запасные части","4523301601","Запчасти и прочее","НАСОС ТОПЛ.ФИЛЬТРА(ТОЙОТА)",2330164200,8,"шт.",314,{"$f":"ROUND(J37*20/100,3)+J37","v":376.8},{"$f":"K37*H37","v":3014.4},"Хорошее тех.состояние. Пригодные для дальнейшего использования","Промплощадка АО \"АНХК\", г.Ангарск, Склад № 18, Иркутская область"]
[35,"АО \"АНХК\"","№1 Невостребованные автомобильные запасные части","4545046101","Запчасти и прочее","НАКОНЕЧНИК Р\\Т(КОРОЛЛА)",4504619175,103,"шт.",304,{"$f":"ROUND(J38*20/100,3)+J38","v":364.8},{"$f":"K38*H38","v":37574.400000000001},"Хорошее тех.состояние. Пригодные для дальнейшего использования","Промплощадка АО \"АНХК\", г.Ангарск, Склад № 18, Иркутская область"]
[36,"АО \"АНХК\"","№1 Невостребованные автомобильные запасные части","4545046201","Запчасти и прочее","НАКОНЕЧНИК РУЛ ТЯГИ(ХАЙ-ЭЙС)",4504629215,39,"шт.",238,{"$f":"ROUND(J39*20/100,3)+J39","v":285.60000000000002},{"$f":"K39*H39","v":11138.400000000001},"Хорошее тех.состояние. Пригодные для дальнейшего использования","Промплощадка АО \"АНХК\", г.Ангарск, Склад № 18, Иркутская область"]
[37,"АО \"АНХК\"","№1 Невостребованные автомобильные запасные части","4513101501","Запчасти и прочее","НАБОР ПОРШНЕЙ(ХАЙ-ЭЙС)",1310154070,17,"компл.",2206.31,{"$f":"ROUND(J40*20/100,3)+J40","v":2647.5720000000001},{"$f":"K40*H40","v":45008.724000000002},"Хорошее тех.состояние. Пригодные для дальнейшего использования","Промплощадка АО \"АНХК\", г.Ангарск, Склад № 18, Иркутская область"]
[38,"АО \"АНХК\"","№1 Невостребованные автомобильные запасные части","4552103601","Запчасти и прочее","НАКЛАДКА БАМПЕРА БОКОВАЯ(ТОЙОТА)",5210260060,4,"шт.",208,{"$f":"ROUND(J41*20/100,3)+J41","v":249.6},{"$f":"K41*H41","v":998.4},"Хорошее тех.состояние. Пригодные для дальнейшего использования","Промплощадка АО \"АНХК\", г.Ангарск, Склад № 18, Иркутская область"]
[39,"АО \"АНХК\"","№1 Невостребованные автомобильные запасные части","4543330201","Запчасти и прочее","ОПОРА ШАРОВ (Х-Э)",4333029155,1,"шт.",249,{"$f":"ROUND(J42*20/100,3)+J42","v":298.8},{"$f":"K42*H42","v":298.8},"Хорошее тех.состояние. Пригодные для дальнейшего использования","Промплощадка АО \"АНХК\", г.Ангарск, Склад № 18, Иркутская область"]
[40,"АО \"АНХК\"","№1 Невостребованные автомобильные запасные части","4516572101","Запчасти и прочее","ПАТРУБОК(КОРОЛЛА)",1657211100,94,"шт.",351,{"$f":"ROUND(J43*20/100,3)+J43","v":421.2},{"$f":"K43*H43","v":39592.799999999996},"Хорошее тех.состояние. Пригодные для дальнейшего использования","Промплощадка АО \"АНХК\", г.Ангарск, Склад № 18, Иркутская область"]
[41,"АО \"АНХК\"","№1 Невостребованные автомобильные запасные части","4531230304","Запчасти и прочее","ПОДШИПНИК ВЫЖИМ(ХАЙ-ЭЙС)",3123035070,9,"шт.",1265,{"$f":"ROUND(J44*20/100,3)+J44","v":1518},{"$f":"K44*H44","v":13662},"Хорошее тех.состояние. Пригодные для дальнейшего использования","Промплощадка АО \"АНХК\", г.Ангарск, Склад № 18, Иркутская область"]
[42,"АО \"АНХК\"","№1 Невостребованные автомобильные запасные части","4590363401","Запчасти и прочее","ПОДШИПНИК(ХАЙ-ЭЙС)",9036340020,54,"шт.",1201,{"$f":"ROUND(J45*20/100,3)+J45","v":1441.2},{"$f":"K45*H45","v":77824.800000000003},"Хорошее тех.состояние. Пригодные для дальнейшего использования","Промплощадка АО \"АНХК\", г.Ангарск, Склад № 18, Иркутская область"]
[43,"АО \"АНХК\"","№1 Невостребованные автомобильные запасные части","4531230301","Запчасти и прочее","ПОДШИПНИК ВЫЖИМ(КОРОЛЛА)",3123032020,57,"шт.",777,{"$f":"ROUND(J46*20/100,3)+J46","v":932.4},{"$f":"K46*H46","v":53146.799999999996},"Хорошее тех.состояние. Пригодные для дальнейшего использования","Промплощадка АО \"АНХК\", г.Ангарск, Склад № 18, Иркутская область"]
[44,"АО \"АНХК\"","№1 Невостребованные автомобильные запасные части","4590368401","Запчасти и прочее","ПОДШИПНИК РОЛИК РАДИАЛ(КРУИЗЕР)",9036845087,20,"шт.",741,{"$f":"ROUND(J47*20/100,3)+J47","v":889.2},{"$f":"K47*H47","v":17784},"Хорошее тех.состояние. Пригодные для дальнейшего использования","Промплощадка АО \"АНХК\", г.Ангарск, Склад № 18, Иркутская область"]
[45,"АО \"АНХК\"","№1 Невостребованные автомобильные запасные части","4590363402","Запчасти и прочее","ПОДШИПНИК РТР-50,82(ТОЙОТА)",9036849084,2,"шт.",684,{"$f":"ROUND(J48*20/100,3)+J48","v":820.8},{"$f":"K48*H48","v":1641.6},"Хорошее тех.состояние. Пригодные для дальнейшего использования","Промплощадка АО \"АНХК\", г.Ангарск, Склад № 18, Иркутская область"]
[46,"АО \"АНХК\"","№1 Невостребованные автомобильные запасные части","4590368302","Запчасти и прочее","ПОДШИПНИК(ХАЙ-ЭЙС)",9036834001,80,"шт.",674,{"$f":"ROUND(J49*20/100,3)+J49","v":808.8},{"$f":"K49*H49","v":64704},"Хорошее тех.состояние. Пригодные для дальнейшего использования","Промплощадка АО \"АНХК\", г.Ангарск, Склад № 18, Иркутская область"]
[47,"АО \"АНХК\"","№1 Невостребованные автомобильные запасные части","4531230201","Запчасти и прочее","ПОДШИПНИК ВЫЖИМ(КОРОЛЛА)",3123012140,14,"шт.",662,{"$f":"ROUND(J50*20/100,3)+J50","v":794.4},{"$f":"K50*H50","v":11121.6},"Хорошее тех.состояние. Пригодные для дальнейшего использования","Промплощадка АО \"АНХК\", г.Ангарск, Склад № 18, Иркутская область"]
[48,"АО \"АНХК\"","№1 Невостребованные автомобильные запасные части","4590369303","Запчасти и прочее","ПОДШИПНИК(КОРОЛЛА)",9036938011,150,"шт.",636,{"$f":"ROUND(J51*20/100,3)+J51","v":763.2},{"$f":"K51*H51","v":114480},"Хорошее тех.состояние. Пригодные для дальнейшего использования","Промплощадка АО \"АНХК\", г.Ангарск, Склад № 18, Иркутская область"]
[49,"АО \"АНХК\"","№1 Невостребованные автомобильные запасные части","4590368201","Запчасти и прочее","ПОДШИПНИК(ХАЙ-ЭЙС)",9036821001,103,"шт.",573,{"$f":"ROUND(J52*20/100,3)+J52","v":687.6},{"$f":"K52*H52","v":70822.8},"Хорошее тех.состояние. Пригодные для дальнейшего использования","Промплощадка АО \"АНХК\", г.Ангарск, Склад № 18, Иркутская область"]
[50,"АО \"АНХК\"","№1 Невостребованные автомобильные запасные части","4590369201","Запчасти и прочее","ПОДШИПНИК(КОРОЛЛА)",9036928006,34,"шт.",522,{"$f":"ROUND(J53*20/100,3)+J53","v":626.4},{"$f":"K53*H53","v":21297.599999999999},"Хорошее тех.состояние. Пригодные для дальнейшего использования","Промплощадка АО \"АНХК\", г.Ангарск, Склад № 18, Иркутская область"]
[51,"АО \"АНХК\"","№1 Невостребованные автомобильные запасные части","4590365401","Запчасти и прочее","ПОДШИПНИК П/ОСИ(Л.КРУИЗЕР)",9036547013,35,"шт.",514,{"$f":"ROUND(J54*20/100,3)+J54","v":616.79999999999995},{"$f":"K54*H54","v":21588},"Хорошее тех.состояние. Пригодные для дальнейшего использования","Промплощадка АО \"АНХК\", г.Ангарск, Склад № 18, Иркутская область"]
[52,"АО \"АНХК\"","№1 Невостребованные автомобильные запасные части","4590368404","Запчасти и прочее","ПОДШИПНИК(КРУИЗЕР)","903684908415",17,"шт.",173,{"$f":"ROUND(J55*20/100,3)+J55","v":207.6},{"$f":"K55*H55","v":3529.2},"Хорошее тех.состояние. Пригодные для дальнейшего использования","Промплощадка АО \"АНХК\", г.Ангарск, Склад № 18, Иркутская область"]
[53,"АО \"АНХК\"","№1 Невостребованные автомобильные запасные части","4511115102","Запчасти и прочее","ПРОКЛАДКА Г\\БЛ(Л.КРУИЗЕР)","111151701001",3,"шт",2548,{"$f":"ROUND(J56*20/100,3)+J56","v":3057.6},{"$f":"H56*K56","v":9172.7999999999993},"Хорошее тех.состояние. Пригодные для дальнейшего использования","Промплощадка АО \"АНХК\", г.Ангарск, Склад № 18, Иркутская область"]
[54,"АО \"АНХК\"","№1 Невостребованные автомобильные запасные части","4511115102","Запчасти и прочее","ПРОКЛАДКА Г\\БЛ(Л.КРУИЗЕР)",1717317010,3,"шт.",433,{"$f":"ROUND(J57*20/100,3)+J57","v":519.6},{"$f":"K57*H57","v":1558.8000000000002},"Хорошее тех.состояние. Пригодные для дальнейшего использования","Промплощадка АО \"АНХК\", г.Ангарск, Склад № 18, Иркутская область"]
[55,"АО \"АНХК\"","№1 Невостребованные автомобильные запасные части","4511115602","Запчасти и прочее","ПРОКЛАДКА Г\\Б(КОРОЛЛА)",111564121,9,"шт.",422,{"$f":"ROUND(J58*20/100,3)+J58","v":506.4},{"$f":"K58*H58","v":4557.5999999999995},"Хорошее тех.состояние. Пригодные для дальнейшего использования","Промплощадка АО \"АНХК\", г.Ангарск, Склад № 18, Иркутская область"]
[56,"АО \"АНХК\"","№1 Невостребованные автомобильные запасные части","4511115601","Запчасти и прочее","ПРОКЛАДКА Г\\Б(КОРОЛЛА)",1111564050,64,"шт.",351,{"$f":"ROUND(J59*20/100,3)+J59","v":421.2},{"$f":"K59*H59","v":26956.799999999999},"Хорошее тех.состояние. Пригодные для дальнейшего использования","Промплощадка АО \"АНХК\", г.Ангарск, Склад № 18, Иркутская область"]
[57,"АО \"АНХК\"","№1 Невостребованные автомобильные запасные части","4511115501","Запчасти и прочее","ПРОКЛАДКА Г\\Б(ХАЙ-ЭЙС)",1111554081,42,"шт.",351,{"$f":"ROUND(J60*20/100,3)+J60","v":421.2},{"$f":"K60*H60","v":17690.399999999998},"Хорошее тех.состояние. Пригодные для дальнейшего использования","Промплощадка АО \"АНХК\", г.Ангарск, Склад № 18, Иркутская область"]
[58,"АО \"АНХК\"","№1 Невостребованные автомобильные запасные части","4517177501","Запчасти и прочее","ПРОКЛАДКА(ХАЙ-ЭЙС)",1717754020,9,"шт.",190,{"$f":"ROUND(J61*20/100,3)+J61","v":228},{"$f":"K61*H61","v":2052},"Хорошее тех.состояние. Пригодные для дальнейшего использования","Промплощадка АО \"АНХК\", г.Ангарск, Склад № 18, Иркутская область"]
[59,"АО \"АНХК\"","№1 Невостребованные автомобильные запасные части","4517173601","Запчасти и прочее","ПРОКЛАДКА(КОРОЛЛА)",1717364050,1,"шт.",124,{"$f":"ROUND(J62*20/100,3)+J62","v":148.80000000000001},{"$f":"K62*H62","v":148.80000000000001},"Хорошее тех.состояние. Пригодные для дальнейшего использования","Промплощадка АО \"АНХК\", г.Ангарск, Склад № 18, Иркутская область"]
[60,"АО \"АНХК\"","№1 Невостребованные автомобильные запасные части","4543420602","Запчасти и прочее","ПРИВОД КОЛЕСА-ШАРНИР Р\\У(Л.КРУИЗЕР)",4341012150,7,"шт.",360,{"$f":"ROUND(J63*20/100,3)+J63","v":432},{"$f":"K63*H63","v":3024},"Хорошее тех.состояние. Пригодные для дальнейшего использования","Промплощадка АО \"АНХК\", г.Ангарск, Склад № 18, Иркутская область"]
[61,"АО \"АНХК\"","№1 Невостребованные автомобильные запасные части","4513101601","Запчасти и прочее","ПОРШЕНЬ(КОРОЛЛА)","131016414001",4,"шт.",1225.5,{"$f":"ROUND(J64*20/100,3)+J64","v":1470.6},{"$f":"K64*H64","v":5882.4},"Хорошее тех.состояние. Пригодные для дальнейшего использования","Промплощадка АО \"АНХК\", г.Ангарск, Склад № 18, Иркутская область"]
[62,"АО \"АНХК\"","№1 Невостребованные автомобильные запасные части","4542301201","Запчасти и прочее","ПОЛУОСЬ(ХАЙ-ЭЙС)",4230126906,2,"шт.",90,{"$f":"ROUND(J65*20/100,3)+J65","v":108},{"$f":"K65*H65","v":216},"Хорошее тех.состояние. Пригодные для дальнейшего использования","Промплощадка АО \"АНХК\", г.Ангарск, Склад № 18, Иркутская область"]
[63,"АО \"АНХК\"","№1 Невостребованные автомобильные запасные части","4590916001","Запчасти и прочее","РЕМЕНЬ ГЕНЕРАТОРА(КОРОЛЛА)",9936521070,65,"шт.",144,{"$f":"ROUND(J66*20/100,3)+J66","v":172.8},{"$f":"K66*H66","v":11232},"Хорошее тех.состояние. Пригодные для дальнейшего использования","Промплощадка АО \"АНХК\", г.Ангарск, Склад № 18, Иркутская область"]
[64,"АО \"АНХК\"","№1 Невостребованные автомобильные запасные части","4590916006","Запчасти и прочее","РЕМЕНЬ ВЕНТИЛЯТОРА(КОРОЛЛА)","909160233283",57,"шт.",116,{"$f":"ROUND(J67*20/100,3)+J67","v":139.19999999999999},{"$f":"K67*H67","v":7934.4},"Хорошее тех.состояние. Пригодные для дальнейшего использования","Промплощадка АО \"АНХК\", г.Ангарск, Склад № 18, Иркутская область"]
[65,"АО \"АНХК\"","№1 Невостребованные автомобильные запасные части","4599365502","Запчасти и прочее","РЕМЕНЬ(КОРОЛЛА)",9936550790,141,"шт.",126.24,{"$f":"ROUND(J68*20/100,3)+J68","v":151.488},{"$f":"K68*H68","v":21359.808000000001},"Хорошее тех.состояние. Пригодные для дальнейшего использования","Промплощадка АО \"АНХК\", г.Ангарск, Склад № 18, Иркутская область"]
[66,"АО \"АНХК\"","№1 Невостребованные автомобильные запасные части","4590256001","Запчасти и прочее","РЕМЕНЬ КОМПРЕС(КОРОЛЛА)",9091602256,32,"шт.",219,{"$f":"ROUND(J69*20/100,3)+J69","v":262.8},{"$f":"K69*H69","v":8409.6},"Хорошее тех.состояние. Пригодные для дальнейшего использования","Промплощадка АО \"АНХК\", г.Ангарск, Склад № 18, Иркутская область"]
[67,"АО \"АНХК\"","№1 Невостребованные автомобильные запасные части","4590916004","Запчасти и прочее","РЕМЕНЬ(ХАЙ-ЭЙС)",9091602262,49,"шт.",122.77,{"$f":"ROUND(J70*20/100,3)+J70","v":147.32399999999998},{"$f":"K70*H70","v":7218.8759999999993},"Хорошее тех.состояние. Пригодные для дальнейшего использования","Промплощадка АО \"АНХК\", г.Ангарск, Склад № 18, Иркутская область"]
[68,"АО \"АНХК\"","№1 Невостребованные автомобильные запасные части","4527700701","Запчасти и прочее","РЕГУЛЯТОР НАПРЯЖ(КОРОЛЛА)",2770070030,7,"шт.",334,{"$f":"ROUND(J71*20/100,3)+J71","v":400.8},{"$f":"K71*H71","v":2805.6},"Хорошее тех.состояние. Пригодные для дальнейшего использования","Промплощадка АО \"АНХК\", г.Ангарск, Склад № 18, Иркутская область"]
[69,"АО \"АНХК\"","№1 Невостребованные автомобильные запасные части","4527700601","Запчасти и прочее","РЕГУЛЯТОР НАПР(КОРОЛЛА)",2770064040,7,"шт.",1667,{"$f":"ROUND(J72*20/100,3)+J72","v":2000.4},{"$f":"K72*H72","v":14002.800000000001},"Хорошее тех.состояние. Пригодные для дальнейшего использования","Промплощадка АО \"АНХК\", г.Ангарск, Склад № 18, Иркутская область"]
[70,"АО \"АНХК\"","№1 Невостребованные автомобильные запасные части","4504493601","Запчасти и прочее","РЕМ К-Т ГЛАВН ЦИЛИНДРА СЦЕПЛЕН(ТОЙОТА)",449360150,2,"шт.",279,{"$f":"ROUND(J73*20/100,3)+J73","v":334.8},{"$f":"K73*H73","v":669.6},"Хорошее тех.состояние. Пригодные для дальнейшего использования","Промплощадка АО \"АНХК\", г.Ангарск, Склад № 18, Иркутская область"]
[71,"АО \"АНХК\"","№1 Невостребованные автомобильные запасные части","4504313101","Запчасти и прочее","РЕМ К-Т ГЛ ТОРМ ЦИЛ(ХАЙ-ЭЙС)",431312030,81,"шт.",74,{"$f":"ROUND(J74*20/100,3)+J74","v":88.8},{"$f":"K74*H74","v":7192.8},"Хорошее тех.состояние. Пригодные для дальнейшего использования","Промплощадка АО \"АНХК\", г.Ангарск, Склад № 18, Иркутская область"]
[72,"АО \"АНХК\"","№1 Невостребованные автомобильные запасные части","4553101107","Запчасти и прочее","РЕШЕТКА РАДИАТОРА(КОРОЛЛА)",5310112660,17,"шт.",528,{"$f":"ROUND(J75*20/100,3)+J75","v":633.6},{"$f":"K75*H75","v":10771.2},"Хорошее тех.состояние. Пригодные для дальнейшего использования","Промплощадка АО \"АНХК\", г.Ангарск, Склад № 18, Иркутская область"]
[73,"АО \"АНХК\"","№1 Невостребованные автомобильные запасные части","4504434601","Запчасти и прочее","САЛЬНИК НАБОРНЫЙ(ТОЙОТА)",443460030,4,"шт.",1900,{"$f":"ROUND(J76*20/100,3)+J76","v":2280},{"$f":"K76*H76","v":9120},"Хорошее тех.состояние. Пригодные для дальнейшего использования","Промплощадка АО \"АНХК\", г.Ангарск, Склад № 18, Иркутская область"]
[74,"АО \"АНХК\"","№1 Невостребованные автомобильные запасные части","4590311310","Запчасти и прочее","САЛЬНИК ХВОСТОВИКА З\\М(ХАЙ-ЭЙС)",9031138133,7,"шт.",121,{"$f":"ROUND(J77*20/100,3)+J77","v":145.19999999999999},{"$f":"K77*H77","v":1016.3999999999999},"Хорошее тех.состояние. Пригодные для дальнейшего использования","Промплощадка АО \"АНХК\", г.Ангарск, Склад № 18, Иркутская область"]
[75,"АО \"АНХК\"","№1 Невостребованные автомобильные запасные части","4590311201","Запчасти и прочее","САЛЬНИК(КОРОЛЛА)",9031125011,8,"шт.",116,{"$f":"ROUND(J78*20/100,3)+J78","v":139.19999999999999},{"$f":"K78*H78","v":1113.5999999999999},"Хорошее тех.состояние. Пригодные для дальнейшего использования","Промплощадка АО \"АНХК\", г.Ангарск, Склад № 18, Иркутская область"]
[76,"АО \"АНХК\"","№1 Невостребованные автомобильные запасные части","4590311501","Запчасти и прочее","САЛЬНИК(ХАЙ-ЭЙС)",9031150005,81,"шт.",57,{"$f":"ROUND(J79*20/100,3)+J79","v":68.400000000000006},{"$f":"K79*H79","v":5540.4000000000005},"Хорошее тех.состояние. Пригодные для дальнейшего использования","Промплощадка АО \"АНХК\", г.Ангарск, Склад № 18, Иркутская область"]
[77,"АО \"АНХК\"","№1 Невостребованные автомобильные запасные части","4585120901","Запчасти и прочее","СТЕКЛООЧИСТИТЕЛЬ(ХАЙ-ЭЙС)","8512095J00",3,"шт.",351,{"$f":"ROUND(J80*20/100,3)+J80","v":421.2},{"$f":"K80*H80","v":1263.5999999999999},"Хорошее тех.состояние. Пригодные для дальнейшего использования","Промплощадка АО \"АНХК\", г.Ангарск, Склад № 18, Иркутская область"]
[78,"АО \"АНХК\"","№1 Невостребованные автомобильные запасные части","4512361501","Запчасти и прочее","САЙЛЕНТБЛОК ДВИГАТЕЛЯ(ХАЙ-ЭЙС)",1236154143,8,"шт.",1233,{"$f":"ROUND(J81*20/100,3)+J81","v":1479.6},{"$f":"K81*H81","v":11836.8},"Хорошее тех.состояние. Пригодные для дальнейшего использования","Промплощадка АО \"АНХК\", г.Ангарск, Склад № 18, Иркутская область"]
[79,"АО \"АНХК\"","№1 Невостребованные автомобильные запасные части","4552351601","Запчасти и прочее","СТУПЕНЬКА З\\БАМПЕРА(ТОЙОТА)",5235160070,2,"шт.",530,{"$f":"ROUND(J82*20/100,3)+J82","v":636},{"$f":"K82*H82","v":1272},"Хорошее тех.состояние. Пригодные для дальнейшего использования","Промплощадка АО \"АНХК\", г.Ангарск, Склад № 18, Иркутская область"]
[80,"АО \"АНХК\"","№1 Невостребованные автомобильные запасные части","4556121901","Запчасти и прочее","УПЛОТНЕНИЕ ВЕТР СТЕКЛА(ТОЙОТА)","5612190K00",1,"шт",2661,{"$f":"ROUND(J83*20/100,3)+J83","v":3193.2},{"$f":"H83*K83","v":3193.2},"Хорошее тех.состояние. Пригодные для дальнейшего использования","Промплощадка АО \"АНХК\", г.Ангарск, Склад № 18, Иркутская область"]
[81,"АО \"АНХК\"","№1 Невостребованные автомобильные запасные части","4581170601","Запчасти и прочее","ФАРА ПЕРЕД(Л.КРУИЗЕР)",8113060470,7,"шт.",1061,{"$f":"ROUND(J84*20/100,3)+J84","v":1273.2},{"$f":"K84*H84","v":8912.4},"Хорошее тех.состояние. Пригодные для дальнейшего использования","Промплощадка АО \"АНХК\", г.Ангарск, Склад № 18, Иркутская область"]
[82,"АО \"АНХК\"","№1 Невостребованные автомобильные запасные части","4590981042","Запчасти и прочее","ФАРА(ХАЙ-ЭЙС)",9098104008,49,"шт.",190,{"$f":"ROUND(J85*20/100,3)+J85","v":228},{"$f":"K85*H85","v":11172},"Хорошее тех.состояние. Пригодные для дальнейшего использования","Промплощадка АО \"АНХК\", г.Ангарск, Склад № 18, Иркутская область"]
[83,"АО \"АНХК\"","№1 Невостребованные автомобильные запасные части","4517801601","Запчасти и прочее","ФИЛЬТР ВОЗД(КОРОЛЛА)",1780164010,16,"шт.",271,{"$f":"ROUND(J86*20/100,3)+J86","v":325.2},{"$f":"K86*H86","v":5203.2},"Хорошее тех.состояние. Пригодные для дальнейшего использования","Промплощадка АО \"АНХК\", г.Ангарск, Склад № 18, Иркутская область"]
[84,"АО \"АНХК\"","№1 Невостребованные автомобильные запасные части","4517801501","Запчасти и прочее","ФИЛЬТР ВОЗД(ХАЙ-ЭЙС)",1780154100,44,"шт.",243,{"$f":"ROUND(J87*20/100,3)+J87","v":291.60000000000002},{"$f":"K87*H87","v":12830.400000000001},"Хорошее тех.состояние. Пригодные для дальнейшего использования","Промплощадка АО \"АНХК\", г.Ангарск, Склад № 18, Иркутская область"]
[85,"АО \"АНХК\"","№1 Невостребованные автомобильные запасные части","4581510802","Запчасти и прочее","ФОНАРЬ ПОВОРОТ ПРАВ(КОРОЛЛА)","8151095J116",4,"шт.",208,{"$f":"ROUND(J88*20/100,3)+J88","v":249.6},{"$f":"K88*H88","v":998.4},"Хорошее тех.состояние. Пригодные для дальнейшего использования","Промплощадка АО \"АНХК\", г.Ангарск, Склад № 18, Иркутская область"]
[86,"АО \"АНХК\"","№1 Невостребованные автомобильные запасные части","4545045601","Запчасти и прочее","ХВОСТОВИК Р\\КОЛ-НАКОНЕЧНИК(Л.КРУИЗЕР)",4504669135,3,"шт.",978,{"$f":"ROUND(J89*20/100,3)+J89","v":1173.5999999999999},{"$f":"K89*H89","v":3520.7999999999997},"Хорошее тех.состояние. Пригодные для дальнейшего использования","Промплощадка АО \"АНХК\", г.Ангарск, Склад № 18, Иркутская область"]
[87,"АО \"АНХК\"","№1 Невостребованные автомобильные запасные части","4531470601","Запчасти и прочее","ЦИЛИHДР СЦЕПЛЕHИЯ РАБОЧИЙ /Х-Э/",314706161,1,"шт.",351,{"$f":"ROUND(J90*20/100,3)+J90","v":421.2},{"$f":"K90*H90","v":421.2},"Хорошее тех.состояние. Пригодные для дальнейшего использования","Промплощадка АО \"АНХК\", г.Ангарск, Склад № 18, Иркутская область"]
[88,"АО \"АНХК\"","№1 Невостребованные автомобильные запасные части","4590947001","Запчасти и прочее","ШЛАНГ ТОРМОЗНОЙ(КОРОЛЛА)",9094702532,96,"шт.",761,{"$f":"ROUND(J91*20/100,3)+J91","v":913.2},{"$f":"K91*H91","v":87667.200000000012},"Хорошее тех.состояние. Пригодные для дальнейшего использования","Промплощадка АО \"АНХК\", г.Ангарск, Склад № 18, Иркутская область"]
[89,"АО \"АНХК\"","№1 Невостребованные автомобильные запасные части","4590947002","Запчасти и прочее","ШЛАНГ ТОРМОЗН. (Л.КРУИЗЕР)",9094702533,42,"шт.",257,{"$f":"ROUND(J92*20/100,3)+J92","v":308.39999999999998},{"$f":"K92*H92","v":12952.8},"Хорошее тех.состояние. Пригодные для дальнейшего использования","Промплощадка АО \"АНХК\", г.Ангарск, Склад № 18, Иркутская область"]